bitfinex/quotes_BTCUSD_20241203
["timestamp","ask_amount","ask_price","bid_price","bid_amount"]
[1733245127346,0.209903,95283.0,95267.0,0.209934]
[1733245127871,0.209909,95280.0,95267.0,0.209934]
[1733245128336,0.21222513,95283.0,95267.0,0.209934]
[1733245128593,0.21222513,95283.0,95276.0,0.0098627]
[1733245131162,0.209909,95280.0,95270.0,0.10471259]
[1733245131596,0.21222513,95283.0,95270.0,0.10471259]
[1733245131597,0.209909,95279.0,95276.0,0.009]
[1733245131837,0.21223413,95278.0,95276.0,0.009]
[1733245132062,0.209925,95272.0,95263.0,0.4425]
[1733245132280,0.209923,95274.0,95269.0,0.009]
[1733245132723,0.209928,95271.0,95269.0,0.009]
[1733245132941,0.209923,95274.0,95269.0,0.009]
[1733245133408,0.209923,95274.0,95264.0,0.10471259]
[1733245133632,0.209929,95270.0,95264.0,0.10471259]
[1733245133875,0.209937,95267.0,95263.0,0.4425]
[1733245134130,0.419875,95267.0,95263.0,0.4425]
[1733245134617,0.209931,95270.0,95263.0,0.4425]
[1733245135081,0.209931,95270.0,95264.0,0.009]
[1733245135082,0.419862,95270.0,95264.0,0.009]
[1733245135303,0.209924,95273.0,95264.0,0.007]
[1733245135564,0.209915,95277.0,95276.0,0.0008627]
[1733245136920,0.209915,95277.0,95276.0,0.0078627]
[1733245137157,0.209915,95277.0,95276.0,0.0168627]
[1733245137648,0.02704932,95280.0,95276.0,0.0168627]
[1733245137908,0.0017254,95282.0,95279.0,0.209908]
[1733245138191,0.0017254,95282.0,95281.0,0.209905]
[1733245138436,0.0017254,95282.0,95281.0,0.31461759]
[1733245138719,0.0017254,95282.0,95281.0,0.10471259]
[1733245140133,0.0017254,95282.0,95281.0,0.10971259]
[1733245140827,0.0017254,95282.0,95281.0,0.11871259]
[1733245141520,0.0017254,95282.0,95281.0,0.014]
[1733245142514,0.00404758,95282.0,95281.0,0.014]
[1733245143001,0.00404758,95282.0,95281.0,1e-08]
[1733245143923,0.03187977,95282.0,95281.0,1e-08]
[1733245144145,0.00404758,95282.0,95281.0,1e-08]
[1733245146014,0.0017254,95282.0,95281.0,1e-08]
[1733245146914,0.209905,95281.0,95266.0,0.15840613]
[1733245147153,0.41981,95281.0,95266.0,0.26311872]
[1733245147391,0.00404766,95282.0,95266.0,0.26311872]
[1733245147392,0.0017254,95282.0,95266.0,0.26311872]
[1733245147614,0.209907,95280.0,95266.0,0.26311872]
[1733245148091,0.00404766,95282.0,95266.0,0.26311872]
[1733245148092,0.0017254,95282.0,95267.0,0.10471259]
[1733245148339,0.0017254,95282.0,95272.0,0.209923]
[1733245148571,0.0017254,95282.0,95273.0,0.10471259]
[1733245148791,0.209905,95281.0,95273.0,0.10471259]
[1733245149226,0.0017254,95282.0,95273.0,0.10471259]
[1733245149461,0.001,95281.0,95274.0,0.20992]
[1733245149685,0.001,95281.0,95275.0,0.10471259]
[1733245149926,0.001,95281.0,95279.0,0.209908]
[1733245150194,0.002,95281.0,95280.0,0.10471259]
[1733245150433,0.0017254,95282.0,95280.0,0.10471259]
[1733245150664,0.0017254,95282.0,95281.0,0.209905]
[1733245150885,0.0017254,95282.0,95281.0,0.31461759]
[1733245151839,0.0017254,95282.0,95281.0,0.39591759]
[1733245152066,0.0017254,95282.0,95281.0,0.45887759]
[1733245152938,0.0027254,95282.0,95281.0,0.46787759]
[1733245153709,0.0037254,95282.0,95281.0,0.46787759]
[1733245153931,0.00344908,95282.0,95281.0,0.47687759]
[1733245154631,0.00344908,95282.0,95281.0,0.8309423]
[1733245154849,0.02644908,95282.0,95281.0,0.12271259]
[1733245159891,0.02644908,95282.0,95281.0,0.0188627]
[1733245160363,0.02877121,95282.0,95281.0,0.0188627]
[1733245160815,0.05647749,95282.0,95281.0,0.0188627]
[1733245161514,0.05647749,95282.0,95281.0,0.0098627]
[1733245161515,0.05647749,95282.0,95281.0,0.0138627]
[1733245161749,0.05447749,95282.0,95281.0,0.0048627]
[1733245161996,0.05447749,95282.0,95281.0,0.0008627]
[1733245162237,0.05447749,95282.0,95281.0,0.0038627]
[1733245162478,0.05447764,95282.0,95281.0,0.0038627]
[1733245162696,0.05447764,95282.0,95281.0,0.0108627]
[1733245162912,0.05215536,95282.0,95281.0,0.0108627]
[1733245163353,0.05447763,95282.0,95281.0,0.0108627]
[1733245164014,0.05215536,95282.0,95281.0,0.0108627]
[1733245164460,0.0544776,95282.0,95281.0,0.0108627]
[1733245164675,0.05215536,95282.0,95281.0,0.0108627]
[1733245166498,0.05447749,95282.0,95281.0,0.0108627]
[1733245170888,0.25357749,95282.0,95281.0,0.0108627]
[1733245171118,0.25125536,95282.0,95281.0,0.0108627]
[1733245172854,0.33335536,95282.0,95281.0,0.0108627]
[1733245173083,0.63806795,95282.0,95281.0,0.0108627]
[1733245173296,0.43806795,95282.0,95281.0,0.0108627]
[1733245174017,0.33335536,95282.0,95281.0,0.0108627]
[1733245174210,0.02915536,95282.0,95281.0,0.0108627]
[1733245175383,0.03147754,95282.0,95281.0,0.0108627]
[1733245175631,0.05447754,95282.0,95281.0,0.0108627]
[1733245175845,0.05215536,95282.0,95281.0,0.0108627]
[1733245176304,0.05447754,95282.0,95281.0,0.0108627]
[1733245177566,0.05215536,95282.0,95281.0,0.0108627]
[1733245178709,0.02444908,95282.0,95281.0,0.0108627]
[1733245183104,0.02677133,95282.0,95281.0,0.0108627]
[1733245189843,0.02677144,95282.0,95281.0,0.0108627]
[1733245190819,0.28148403,95282.0,95281.0,0.0108627]
[1733245191072,0.27916167,95282.0,95281.0,0.0108627]
[1733245191313,0.382936,95267.0,95266.0,0.0008627]
[1733245191562,0.382936,95267.0,95252.0,0.0017248]
[1733245191563,0.382967,95253.0,95252.0,0.0017248]
[1733245192772,0.382967,95253.0,95252.0,0.0107248]
[1733245193015,0.38308432,95253.0,95252.0,0.0017248]
[1733245193278,0.38308432,95253.0,95252.0,0.0047248]
[1733245193514,0.38308432,95253.0,95252.0,0.0117248]
[1733245193515,0.56279691,95253.0,95252.0,0.0117248]
[1733245193772,0.02311732,95253.0,95252.0,0.0117248]
[1733245194011,0.00011732,95253.0,95252.0,0.0117248]
[1733245194225,0.00011732,95253.0,95252.0,0.11643739]
[1733245194474,0.00011732,95253.0,95252.0,0.19153739]
[1733245194952,0.00011732,95253.0,95252.0,0.18853739]
[1733245195414,0.00211732,95253.0,95252.0,0.18153739]
[1733245195659,0.00211732,95253.0,95252.0,0.18253739]
[1733245195880,0.00011732,95253.0,95252.0,0.18153739]
[1733245196102,0.00111732,95253.0,95252.0,0.18753739]
[1733245196324,0.00211732,95253.0,95252.0,0.19653739]
[1733245198373,0.00211732,95253.0,95252.0,0.0918248]
[1733245198590,0.00011732,95253.0,95252.0,0.0017248]
[1733245198831,0.00111732,95253.0,95252.0,0.0167248]
[1733245199049,0.00111732,95253.0,95252.0,0.0077248]
[1733245199050,0.05189968,95253.0,95252.0,0.0077248]
[1733245199284,0.05422259,95253.0,95252.0,0.0017248]
[1733245199512,0.02744023,95253.0,95252.0,0.0167248]
[1733245199945,0.02544023,95253.0,95252.0,0.0077248]
[1733245200168,0.02644032,95253.0,95252.0,0.0097248]
[1733245200402,0.02544032,95253.0,95252.0,0.0017248]
[1733245201332,0.02544032,95253.0,95252.0,0.0027248]
[1733245201564,0.02311732,95253.0,95252.0,0.0027248]
[1733245201785,0.02544059,95253.0,95252.0,0.0027248]
[1733245202033,0.28015318,95253.0,95252.0,0.0077248]
[1733245202261,0.27782991,95253.0,95252.0,0.0077248]
[1733245203383,0.27782991,95253.0,95252.0,8e-07]
[1733245203384,0.47782991,95253.0,95252.0,8e-07]
[1733245203648,0.52582991,95253.0,95252.0,8e-07]
[1733245205004,0.582969,95252.0,95250.0,0.0008623]
[1733245205226,0.48768159,95252.0,95250.0,0.0008623]
[1733245205449,0.382969,95252.0,95250.0,0.0008623]
[1733245205721,0.209969,95252.0,95250.0,0.0008623]
[1733245206517,0.209969,95252.0,95251.0,0.10743759]
[1733245206518,0.003,95252.0,95251.0,0.10743759]
[1733245206750,0.00011732,95253.0,95251.0,0.10643759]
[1733245206966,0.00011732,95253.0,95252.0,0.10471259]
[1733245207884,0.00011732,95253.0,95251.0,0.001725]
[1733245208104,0.382969,95252.0,95251.0,0.003725]
[1733245208341,0.382969,95252.0,95251.0,0.001725]
[1733245208566,0.382969,95252.0,95251.0,0.002725]
[1733245209061,0.382969,95252.0,95251.0,0.001725]
[1733245209298,0.41057254,95252.0,95251.0,0.010725]
[1733245209520,0.41057254,95252.0,95251.0,0.006725]
[1733245209989,0.41057254,95252.0,95251.0,0.015725]
[1733245210653,0.00011732,95253.0,95251.0,0.015725]
[1733245210925,0.00011732,95253.0,95251.0,0.10643759]
[1733245211418,0.00011732,95253.0,95251.0,0.002725]
[1733245211419,0.216969,95252.0,95251.0,0.002725]
[1733245211640,0.209969,95252.0,95251.0,0.001725]
[1733245211864,0.21229208,95252.0,95251.0,0.007725]
[1733245212081,0.36229208,95252.0,95251.0,0.004725]
[1733245212319,0.359969,95252.0,95251.0,0.004725]
[1733245212553,0.359969,95252.0,95251.0,0.007725]
[1733245212779,0.382969,95252.0,95251.0,0.004725]
[1733245213223,0.023,95252.0,95251.0,0.004725]
[1733245213457,0.0253229,95252.0,95251.0,0.004725]
[1733245213705,0.2352919,95252.0,95251.0,0.004725]
[1733245213945,0.00011732,95253.0,95251.0,0.004725]
[1733245214162,0.232969,95252.0,95251.0,0.011725]
[1733245214820,0.232969,95252.0,95251.0,0.001725]
[1733245215528,0.232969,95252.0,95251.0,0.010725]
[1733245215763,0.232969,95252.0,95251.0,0.007725]
[1733245215999,0.232969,95252.0,95251.0,0.001725]
[1733245217102,0.00011732,95253.0,95251.0,0.001725]
[1733245217103,0.00011732,95253.0,95251.0,0.004725]
[1733245217320,0.00011732,95253.0,95251.0,0.011725]
[1733245217760,0.023,95252.0,95251.0,0.011725]
[1733245217978,0.00011732,95253.0,95251.0,0.211725]
[1733245218192,0.00011732,95253.0,95251.0,0.201725]
[1733245218427,0.232969,95252.0,95251.0,0.204725]
[1733245218646,0.232969,95252.0,95251.0,0.210725]
[1733245219399,0.232969,95252.0,95251.0,0.204725]
[1733245219655,0.00011732,95253.0,95251.0,0.204725]
[1733245219890,0.00011732,95253.0,95252.0,0.0763]
[1733245220152,0.00011732,95253.0,95252.0,0.18101259]
[1733245220362,0.00011732,95253.0,95252.0,0.39098159]
[1733245220809,0.00011732,95253.0,95252.0,2.52094159]
[1733245221047,0.0017258,95266.0,95265.0,0.33434]
[1733245221267,0.0017258,95266.0,95265.0,0.43905259]
[1733245221496,0.00181856,95266.0,95265.0,0.43905259]
[1733245221745,0.00181856,95266.0,95265.0,0.70201259]
[1733245221999,0.0017254,95288.0,95281.0,0.209905]
[1733245222220,0.00154183,95282.0,95281.0,0.31461759]
[1733245222659,0.00154183,95282.0,95281.0,0.10471259]
[1733245223821,0.0012332,95282.0,95281.0,0.10471259]
[1733245224050,0.0012332,95282.0,95281.0,0.10971259]
[1733245224502,0.0012332,95282.0,95281.0,0.10471259]
[1733245224737,0.0012332,95282.0,95281.0,0.11371259]
[1733245224963,0.0012332,95282.0,95281.0,0.10971259]
[1733245225423,0.0012332,95282.0,95281.0,0.11671259]
[1733245226617,0.0012332,95282.0,95281.0,0.11171259]
[1733245226834,0.0012332,95282.0,95281.0,0.10471259]
[1733245227057,0.0012332,95282.0,95281.0,0.11571259]
[1733245227512,0.0012332,95282.0,95281.0,0.10471259]
[1733245227749,0.0012332,95282.0,95281.0,0.18801259]
[1733245227996,0.0012332,95282.0,95281.0,0.23671259]
[1733245228223,0.0012332,95282.0,95281.0,0.43671259]
[1733245229136,0.1878026,95309.0,95292.0,0.209879]
[1733245229359,0.023,95308.0,95293.0,0.10471259]
[1733245229593,0.1878026,95309.0,95293.0,0.10471259]
[1733245229594,0.173,95309.0,95293.0,0.10471259]
[1733245230317,0.023,95307.0,95293.0,0.10471259]
[1733245230557,0.20985,95306.0,95293.0,0.10471259]
[1733245230802,0.023,95308.0,95293.0,0.10471259]
[1733245231045,0.023,95308.0,95294.0,0.209876]
[1733245231266,0.02754888,95312.0,95302.0,0.209858]
[1733245231267,0.023,95312.0,95302.0,0.209858]
[1733245231479,0.023,95312.0,95304.0,0.0775]
[1733245231710,0.023,95312.0,95305.0,0.10471259]
[1733245233376,0.023,95312.0,95305.0,0.15131259]
[1733245233613,0.023,95312.0,95305.0,0.16031259]
[1733245234090,0.023,95312.0,95307.0,0.209848]
[1733245234319,0.023,95312.0,95309.0,0.209843]
[1733245234554,0.023,95312.0,95310.0,0.10471259]
[1733245235734,0.02317675,95312.0,95310.0,0.10471259]
[1733245236660,0.02317675,95312.0,95311.0,0.209839]
[1733245236882,0.02317675,95312.0,95311.0,0.10471259]
[1733245238052,0.02317675,95312.0,95311.0,0.11871259]
[1733245238540,0.00017675,95312.0,95311.0,0.11871259]
[1733245240672,0.00103925,95312.0,95311.0,0.11871259]
[1733245240925,0.00103925,95312.0,95311.0,0.31871259]
[1733245241402,0.00103925,95312.0,95311.0,0.30471259]
[1733245242816,0.00103925,95312.0,95311.0,0.31871259]
[1733245243067,0.02403925,95312.0,95311.0,0.214]
[1733245243308,0.05417033,95312.0,95311.0,0.209]
[1733245243562,0.17636071,95312.0,95311.0,0.209]
[1733245244025,0.17636071,95312.0,95311.0,0.2]
[1733245244270,0.17636071,95312.0,95311.0,0.209]
[1733245244271,0.2810733,95312.0,95311.0,0.209]
[1733245244513,0.27875184,95312.0,95311.0,0.209]
[1733245244769,0.27875184,95312.0,95311.0,0.2]
[1733245244999,0.27843707,95312.0,95311.0,0.2]
[1733245245921,0.27943707,95312.0,95311.0,0.201]
[1733245246378,0.27843707,95312.0,95311.0,0.2]
[1733245246898,0.28043707,95312.0,95311.0,0.2]
[1733245247113,0.27843707,95312.0,95311.0,0.2]
[1733245247347,0.28043707,95312.0,95311.0,0.2]
[1733245247556,0.27843707,95312.0,95311.0,0.4]
[1733245248241,0.75383707,95312.0,95311.0,0.25799323]
[1733245248460,0.382856,95303.0,95302.0,0.001725]
[1733245248691,0.68756859,95303.0,95302.0,0.001725]
[1733245249355,0.382856,95303.0,95302.0,0.001725]
[1733245250294,0.41087271,95303.0,95302.0,0.001725]
[1733245251909,0.5155853,95303.0,95302.0,0.001725]
[1733245252127,0.9155853,95303.0,95302.0,0.001725]
[1733245252795,0.9497853,95303.0,95302.0,0.001725]
[1733245253255,0.9497253,95303.0,95302.0,0.001725]
[1733245255757,0.9497253,95303.0,95302.0,1e-06]
[1733245257548,0.9487253,95303.0,95302.0,1e-06]
[1733245258001,0.232953,95259.0,95258.0,0.0756]
[1733245258491,0.382969,95252.0,95247.0,0.0772]
[1733245258733,0.382969,95252.0,95238.0,0.0008623]
[1733245259171,0.382969,95252.0,95251.0,0.00190175]
[1733245259615,0.48768159,95252.0,95251.0,0.00190175]
[1733245259862,0.573,95251.0,95250.0,5e-08]
[1733245260099,0.67771259,95251.0,95250.0,8e-07]
[1733245260772,0.209991,95242.0,95238.0,0.0008623]
[1733245261056,0.48003625,95241.0,95240.0,0.00231531]
[1733245261281,0.48003625,95241.0,95235.0,3.1e-07]
[1733245261282,0.2,95237.0,95235.0,3.1e-07]
[1733245261497,0.573,95233.0,95232.0,6.1e-07]
[1733245261743,0.67771259,95233.0,95232.0,6.1e-07]
[1733245262209,0.35,95218.0,95217.0,5.1e-07]
[1733245262434,0.67771259,95218.0,95217.0,5.1e-07]
[1733245262677,0.89904318,95218.0,95217.0,5.1e-07]
[1733245263143,0.90607959,95218.0,95217.0,5.1e-07]
[1733245263393,0.88775659,95218.0,95217.0,5.1e-07]
[1733245263875,0.89075659,95218.0,95217.0,5.1e-07]
[1733245264116,0.89275659,95218.0,95217.0,5.1e-07]
[1733245264367,0.91107959,95218.0,95217.0,5.1e-07]
[1733245265125,0.91107959,95218.0,95206.0,0.0017248]
[1733245265126,0.4,95199.0,95198.0,3e-07]
[1733245265369,0.4,95199.0,95188.0,1e-07]
[1733245265370,0.55,95189.0,95188.0,1e-07]
[1733245265609,0.65471259,95189.0,95188.0,1e-07]
[1733245265839,0.65471259,95189.0,95160.0,0.0832]
[1733245265840,0.55,95186.0,95185.0,8e-07]
[1733245266078,0.65471259,95186.0,95185.0,8e-07]
[1733245266314,0.86482659,95186.0,95185.0,8e-07]
[1733245266553,0.86482659,95186.0,95185.0,6.4e-07]
[1733245267041,0.86782659,95186.0,95185.0,6.4e-07]
[1733245267264,0.89082659,95186.0,95185.0,6.4e-07]
[1733245267507,0.92377119,95186.0,95185.0,6.4e-07]
[1733245267999,0.89582659,95186.0,95185.0,6.4e-07]
[1733245268469,0.89282659,95186.0,95185.0,6.4e-07]
[1733245268721,0.89782659,95186.0,95185.0,6.4e-07]
[1733245269422,0.88782659,95186.0,95185.0,6.4e-07]
[1733245269685,0.89682659,95186.0,95185.0,6.4e-07]
[1733245269940,0.89682659,95186.0,95162.0,6e-07]
[1733245269941,0.783165,95163.0,95162.0,6e-07]
[1733245270207,0.88787759,95163.0,95162.0,3.6e-07]
[1733245270709,0.86487759,95163.0,95162.0,3.6e-07]
[1733245271193,0.46487759,95163.0,95162.0,3.6e-07]
[1733245271427,0.210165,95163.0,95162.0,3.6e-07]
[1733245271688,0.210139,95175.0,95162.0,3.6e-07]
[1733245271689,0.005,95186.0,95162.0,3.6e-07]
[1733245271920,0.009,95186.0,95185.0,0.001]
[1733245272198,0.210145,95173.0,95163.0,0.10471259]
[1733245272475,0.210133,95178.0,95163.0,0.10471259]
[1733245272709,0.19075586,95200.0,95163.0,0.10471259]
[1733245272710,0.21833571,95200.0,95164.0,0.1285]
[1733245272940,0.21833571,95200.0,95165.0,0.10471259]
[1733245272941,0.19075586,95180.0,95165.0,0.10471259]
[1733245273168,0.210157,95167.0,95164.0,0.1285]
[1733245273407,0.10471259,95199.0,95166.0,0.210159]
[1733245273651,0.210121,95183.0,95168.0,0.210154]
[1733245273886,0.210121,95183.0,95169.0,0.10471259]
[1733245273887,0.001,95178.0,95169.0,0.10471259]
[1733245274111,0.211132,95178.0,95169.0,0.10471259]
[1733245274368,0.001,95178.0,95169.0,0.10471259]
[1733245274830,0.210132,95179.0,95169.0,0.10471259]
[1733245275077,0.023,95178.0,95169.0,0.10471259]
[1733245275330,0.023,95178.0,95170.0,0.210148]
[1733245275580,0.2,95219.0,95178.0,0.210131]
[1733245275808,0.2,95219.0,95171.0,0.10471259]
[1733245275809,0.00232432,95207.0,95179.0,0.23551259]
[1733245276073,0.19075586,95190.0,95179.0,0.1308]
[1733245276320,0.10471259,95207.0,95179.0,0.1308]
[1733245276321,0.02691323,95208.0,95180.0,0.10471259]
[1733245276555,0.210024,95227.0,95180.0,0.10471259]
[1733245276556,0.19075586,95220.0,95180.0,0.10471259]
[1733245276784,0.210024,95227.0,95179.0,0.1308]
[1733245276785,0.19075586,95210.0,95179.0,0.1308]
[1733245277018,0.210123,95183.0,95179.0,0.1308]
[1733245277380,0.420246,95183.0,95179.0,0.1308]
[1733245277475,0.210123,95183.0,95179.0,0.1308]
[1733245277711,0.210075,95204.0,95179.0,0.1308]
[1733245277712,0.023,95188.0,95180.0,0.210128]
[1733245277942,0.023,95193.0,95179.0,0.1308]
[1733245278186,0.210101,95192.0,95179.0,0.1308]
[1733245278422,0.023,95193.0,95180.0,0.10471259]
[1733245278653,0.0023242,95198.0,95181.0,0.210125]
[1733245278888,0.19075586,95191.0,95179.0,0.1308]
[1733245279129,0.210128,95180.0,95179.0,0.1378]
[1733245279389,0.210128,95180.0,95179.0,0.1338]
[1733245279887,0.383128,95180.0,95179.0,0.1308]
[1733245280127,0.383128,95180.0,95179.0,0.1338]
[1733245280367,0.383128,95180.0,95179.0,0.003]
[1733245281076,0.41033918,95180.0,95179.0,0.006]
[1733245281311,0.41033918,95180.0,95179.0,0.003]
[1733245281547,0.210156,95167.0,95166.0,0.0782634]
[1733245281771,0.023,95167.0,95166.0,0.0782634]
[1733245282008,0.210123,95183.0,95166.0,0.18297599]
[1733245282009,0.360132,95179.0,95166.0,0.18297599]
[1733245282245,0.210125,95181.0,95167.0,0.10471259]
[1733245282523,0.151,95180.0,95179.0,0.006]
[1733245282775,0.001,95180.0,95179.0,0.0872]
[1733245283014,0.19075586,95220.0,95179.0,0.0812]
[1733245283015,0.210096,95195.0,95179.0,0.0812]
[1733245283263,0.21009,95198.0,95184.0,0.210117]
[1733245283496,0.210081,95202.0,95186.0,0.210114]
[1733245283770,0.2,95228.0,95185.0,0.18101259]
[1733245283771,0.2,95248.0,95188.0,0.0763]
[1733245283980,0.210052,95215.0,95190.0,0.0798]
[1733245284222,0.210042,95219.0,95206.0,0.21007]
[1733245284463,0.0008634,95233.0,95212.0,0.210056]
[1733245284703,0.210015,95231.0,95214.0,0.210053]
[1733245284941,0.210015,95231.0,95220.0,0.210038]
[1733245285180,0.0008634,95233.0,95209.0,0.210064]
[1733245285181,0.0008634,95233.0,95222.0,0.0796]
[1733245285425,0.0008634,95233.0,95223.0,0.10471259]
[1733245285674,0.0008634,95233.0,95228.0,0.21002]
[1733245285917,0.5343,95296.0,95223.0,0.10471259]
[1733245285918,0.209958,95257.0,95241.0,0.209992]
[1733245286393,0.29401236,95280.0,95242.0,0.10471259]
[1733245286639,0.209937,95267.0,95252.0,0.209969]
[1733245286894,0.00232277,95279.0,95253.0,0.10471259]
[1733245287142,0.209944,95264.0,95253.0,0.10471259]
[1733245287379,0.00232248,95263.0,95243.0,0.0817]
[1733245287637,0.00232279,95262.0,95244.0,0.10471259]
[1733245287868,0.209968,95253.0,95244.0,0.10471259]
[1733245288099,0.023,95256.0,95244.0,0.10471259]
[1733245288337,0.209976,95249.0,95244.0,0.10471259]
[1733245288583,0.023,95248.0,95244.0,0.10471259]
[1733245288824,0.209971,95251.0,95244.0,0.10471259]
[1733245289061,0.209975,95249.0,95244.0,0.10771259]
[1733245289297,0.209971,95251.0,95244.0,0.10771259]
[1733245289298,0.209984,95245.0,95244.0,0.003]
[1733245289538,0.38530702,95245.0,95244.0,0.007]
[1733245289788,0.382984,95245.0,95244.0,0.012]
[1733245290561,0.382984,95245.0,95244.0,0.008]
[1733245290783,0.023,95245.0,95229.0,0.4903]
[1733245291026,0.023,95233.0,95229.0,0.4903]
[1733245291247,0.023,95231.0,95229.0,0.4903]
[1733245291464,0.38534036,95230.0,95229.0,0.0468]
[1733245291684,0.38534036,95230.0,95211.0,0.0452]
[1733245291685,0.210057,95212.0,95211.0,0.0452]
[1733245291934,0.023,95212.0,95211.0,0.0452]
[1733245292180,0.02273656,95212.0,95211.0,0.0452]
[1733245292407,0.15,95220.0,95211.0,0.15002991]
[1733245292642,0.15,95220.0,95212.0,0.10471259]
[1733245293118,0.210032,95224.0,95212.0,0.10471259]
[1733245293119,0.15,95221.0,95212.0,0.10471259]
[1733245293340,0.15,95223.0,95212.0,0.10471259]
[1733245294011,0.023,95222.0,95212.0,0.10471259]
[1733245294452,0.210042,95219.0,95212.0,0.10471259]
[1733245294680,0.023,95217.0,95212.0,0.004]
[1733245294933,0.023,95215.0,95212.0,0.004]
[1733245295149,0.023,95215.0,95211.0,0.04531732]
[1733245295150,0.4431,95215.0,95211.0,0.04531732]
[1733245295377,0.4431,95215.0,95212.0,0.008]
[1733245295598,0.233055,95213.0,95212.0,0.202]
[1733245296059,0.233055,95213.0,95212.0,0.207]
[1733245296826,0.233055,95213.0,95212.0,0.205]
[1733245297044,0.233055,95213.0,95212.0,0.207]
[1733245297275,0.233055,95213.0,95212.0,0.202]
[1733245297552,0.383055,95213.0,95212.0,0.2]
[1733245297786,0.48776759,95213.0,95212.0,0.205]
[1733245298224,0.48776759,95213.0,95212.0,0.212]
[1733245298449,0.48776759,95213.0,95212.0,0.207]
[1733245298673,0.48776759,95213.0,95212.0,0.2]
[1733245298890,0.48976759,95213.0,95212.0,0.2]
[1733245299577,0.48976759,95213.0,95212.0,0.2008635]
[1733245300078,0.49076759,95213.0,95212.0,0.2008635]
[1733245300525,0.68976759,95213.0,95212.0,0.2008635]
[1733245300988,0.69276759,95213.0,95212.0,0.2008635]
[1733245302111,0.96217804,95213.0,95212.0,0.1378455]
[1733245302359,0.89276759,95213.0,95212.0,0.0958335]
[1733245303047,0.89276759,95213.0,95212.0,0.0538215]
[1733245303271,0.89276759,95213.0,95212.0,5e-07]
[1733245304730,0.573,95212.0,95211.0,8.2e-07]
[1733245304949,0.78054405,95212.0,95211.0,8.2e-07]
[1733245305212,0.67771259,95212.0,95211.0,8.2e-07]
[1733245305650,0.67771259,95212.0,95165.0,0.0454]
[1733245305651,0.383156,95167.0,95165.0,0.0454]
[1733245305879,0.383156,95167.0,95156.0,0.0813]
[1733245305880,0.383156,95167.0,95166.0,0.00104037]
[1733245306337,0.48786859,95167.0,95166.0,0.00104037]
[1733245306570,0.68786859,95167.0,95166.0,3.7e-07]
[1733245307705,0.69086859,95167.0,95166.0,3.7e-07]
[1733245308426,0.71886336,95167.0,95166.0,3.7e-07]
[1733245308861,0.51886336,95167.0,95166.0,3.7e-07]
[1733245309118,0.51886336,95167.0,95166.0,0.00100037]
[1733245309119,0.03799477,95167.0,95166.0,0.00100037]
[1733245309335,0.007,95167.0,95166.0,0.12630037]
[1733245309565,0.210125,95182.0,95166.0,0.23101296]
[1733245309794,0.00232459,95189.0,95167.0,0.10471259]
[1733245310042,0.210134,95177.0,95167.0,0.10471259]
[1733245310269,0.210136,95177.0,95167.0,0.10471259]
[1733245310491,0.210127,95181.0,95167.0,0.10471259]
[1733245310965,0.21011,95188.0,95169.0,0.210151]
[1733245311186,0.21011,95188.0,95167.0,0.10471259]
[1733245311187,0.15,95187.0,95171.0,0.210148]
[1733245311449,0.15,95185.0,95172.0,0.10471259]
[1733245311680,0.210099,95193.0,95167.0,0.002]
[1733245311681,0.15,95183.0,95167.0,0.005]
[1733245311914,0.420292,95172.0,95167.0,0.002]
[1733245312384,0.210136,95177.0,95167.0,0.002]
[1733245312623,0.15,95176.0,95166.0,0.32616427]
[1733245313063,0.15,95174.0,95167.0,0.002]
[1733245313305,0.360141,95174.0,95167.0,0.002]
[1733245313548,0.360141,95174.0,95166.0,0.32616427]
[1733245313777,0.360141,95174.0,95167.0,0.003]
[1733245314011,0.210151,95170.0,95167.0,0.003]
[1733245314257,0.00232487,95172.0,95167.0,0.001]
[1733245314473,0.15,95174.0,95167.0,0.001]
[1733245314474,0.15,95174.0,95167.0,0.007]
[1733245314693,0.15,95174.0,95167.0,0.011]
[1733245315151,0.15,95174.0,95167.0,0.004]
[1733245315623,0.15,95174.0,95167.0,0.011]
[1733245315938,0.15,95174.0,95167.0,0.007]
[1733245316174,0.15,95174.0,95167.0,0.012]
[1733245316608,0.15,95176.0,95167.0,0.007]
[1733245316821,0.420291,95172.0,95167.0,0.011]
[1733245317288,0.21015,95170.0,95167.0,0.011]
[1733245317513,0.21015,95170.0,95166.0,0.32616427]
[1733245317741,0.15,95179.0,95167.0,0.007]
[1733245317954,0.15,95177.0,95166.0,0.32616427]
[1733245318172,0.15,95175.0,95166.0,0.43087686]
[1733245318433,0.15,95175.0,95167.0,0.008]
[1733245318632,0.210134,95177.0,95167.0,0.008]
[1733245318856,0.210134,95177.0,95167.0,0.017]
[1733245319338,0.210134,95177.0,95166.0,0.43087686]
[1733245319553,0.210144,95173.0,95167.0,0.004]
[1733245320010,0.210134,95177.0,95166.0,0.43087686]
[1733245320218,0.15,95179.0,95167.0,0.10471259]
[1733245320484,0.210108,95189.0,95167.0,0.10471259]
[1733245320485,0.15,95180.0,95167.0,0.10771259]
[1733245320717,0.210108,95189.0,95167.0,0.10771259]
[1733245320718,0.15,95177.0,95167.0,0.10771259]
[1733245321156,0.15,95177.0,95167.0,0.11471259]
[1733245321392,0.210146,95172.0,95167.0,0.003]
[1733245321609,0.15,95169.0,95167.0,0.006]
[1733245321819,0.15,95169.0,95167.0,0.003]
[1733245321820,0.15232487,95169.0,95167.0,0.003]
[1733245322057,0.15,95167.0,95166.0,0.32916427]
[1733245322305,0.15,95179.0,95166.0,0.32916427]
[1733245322547,0.210146,95172.0,95167.0,0.005]
[1733245323023,0.210146,95172.0,95167.0,0.01]
[1733245323308,0.15,95177.0,95168.0,0.10471259]
[1733245323513,0.210065,95209.0,95168.0,0.10471259]
[1733245323741,0.210065,95209.0,95170.0,0.210148]
[1733245323742,0.02779507,95201.0,95170.0,0.210148]
[1733245323987,0.210116,95186.0,95171.0,0.10471259]
[1733245324220,0.00232436,95200.0,95167.0,0.4525]
[1733245324221,0.00232464,95185.0,95167.0,0.4435]
[1733245324448,0.00232459,95188.0,95168.0,0.10471259]
[1733245324683,0.29438423,95190.0,95168.0,0.10471259]